fUSD/lending_fUSD_20240823
["ID","MTS","AMOUNT","RATE_DAILY","PERIOD"]
[335692033,1724435433436,-1822.28,0.00010999,2]
[335692035,1724435433445,-1822.28,0.00010999,2]
[335692037,1724435433454,-1822.28,0.00010999,2]
[335692039,1724435433465,-1822.28,0.00010999,2]
[335692041,1724435433474,-1822.28,0.00010999,2]
[335692042,1724435433483,-1822.28,0.00010999,2]
[335692044,1724435433492,-1822.28,0.00010999,2]
[335692046,1724435433501,-1822.28,0.00010999,2]
[335692048,1724435433510,-1822.28,0.00010999,2]
[335692050,1724435433520,-1822.28,0.00010999,2]
[335692053,1724435433532,-1822.28,0.00010999,2]
[335692055,1724435433544,-1822.28,0.00010999,2]
[335692057,1724435433555,-1822.28,0.00010999,2]
[335692059,1724435433567,-1822.28,0.00010999,2]
[335692062,1724435433579,-1822.28,0.00010999,2]
[335692064,1724435433591,-1822.28,0.00010999,2]
[335692066,1724435433601,-1822.28,0.00010999,2]
[335692068,1724435433611,-1822.28,0.00010999,2]
[335692070,1724435433622,-1822.28,0.00010999,2]
[335692072,1724435433634,-1822.28,0.00010999,2]
[335692075,1724435433645,-1822.32184034,0.00010999,2]
[335692077,1724435433667,-500.0,0.00010999,2]
[335692079,1724435433677,-500.0,0.00010999,2]
[335692081,1724435433689,-500.0,0.00010999,2]
[335692083,1724435433700,-500.0,0.00010999,2]
[335692085,1724435433711,-500.0,0.00010999,2]
[335692087,1724435433722,-309.15912493,0.00010999,2]
[335692090,1724435433734,-354.65925411,0.00010999,2]
[335692092,1724435433745,-500.0,0.00010999,2]
[335692094,1724435433758,-205.53862863,0.00010999,2]
[335692096,1724435433769,-335171.47903794,0.00011,2]
[335692099,1724435433786,-301.2900896,0.00011,2]
[335692101,1724435433798,-8866.39917167,0.00011,2]
[335692104,1724435433820,-460.43123519,0.00011,2]
[335692107,1724435433833,-533.6,0.00011,2]
[335692109,1724435433846,-1198.575366,0.00011,2]
[335692111,1724435433860,-943.09082566,0.00011,2]
[335692114,1724435433874,-1085.42033485,0.00011,2]
[335692116,1724435433889,-3306.57968004,0.00011,2]
[335692119,1724435433912,-546.47243218,0.00011,2]
[335692188,1724435437728,-973.41101273,0.00011,2]
[335692189,1724435437807,-4887.67895849,0.00011,2]
[335692190,1724435437823,-1002.5168337,0.00011,2]
[335692191,1724435437838,-438.848,0.00011,2]
[335692192,1724435437851,-3253.18471337,0.00011,2]
[335692193,1724435437866,-1177.0,0.00011,2]
[335692194,1724435437882,-281.55,0.00011,2]
[335692195,1724435437898,-12973.0660273,0.00011,2]
[335692196,1724435437922,-1251.34130064,0.00011,2]
[335692197,1724435437938,-729.82228752,0.00011,2]
[335692198,1724435437955,-289.4002629,0.00011,2]
[335692199,1724435437968,-2183.16426548,0.00011,2]
[335692200,1724435437980,-10507.97828511,0.00011,2]
[335692201,1724435437994,-1463.76336,0.00011,2]
[335692211,1724435438302,-18716.99087636,0.00011,2]
[335692212,1724435438315,-6337.13189121,0.00011,2]
[335692213,1724435438328,-822.49017547,0.00011,2]
[335692214,1724435438351,-6343.80348218,0.00011,2]
[335692215,1724435438365,-355.55693075,0.00011,2]
[335692216,1724435438382,-609.04084905,0.00011,2]
[335692217,1724435438396,-2084.0327375,0.00011,2]
[335692218,1724435438413,-2158.98320904,0.00011,2]
[335692295,1724435439813,-902.16144431,0.00011,2]
[335692304,1724435439893,-504.16588941,0.00011,2]
[335692307,1724435439907,-441.48538942,0.00011,2]
[335692309,1724435439920,-939.63137312,0.00011,2]
[335692312,1724435439937,-2954.1894928,0.00011,2]
[335692314,1724435439951,-847.02556474,0.00011,2]
[335692340,1724435440228,-1701.30422085,0.00011,2]
[335692342,1724435440242,-3540.07767609,0.00011,2]
[335692359,1724435440410,-266971.8643773,0.00011,2]
[335692361,1724435440424,-662.70634916,0.00011,2]
[335692364,1724435440437,-1391.84791045,0.00011,2]
[335692366,1724435440450,-2177.1006512,0.00011,2]
[335692368,1724435440463,-2160.06555193,0.00011,2]
[335692370,1724435440476,-7217.80228428,0.00011,2]
[335692373,1724435440490,-3474.04327968,0.00011,2]
[335692375,1724435440503,-3094.16293897,0.00011,2]
[335692377,1724435440516,-16876.40537994,0.00011,2]
[335692379,1724435440533,-505.53116172,0.00011,2]
[335692382,1724435440545,-2141.25728077,0.00011,2]
[335692384,1724435440557,-4276.48182047,0.00011,2]
[335692386,1724435440568,-630.25841339,0.00011,2]
[335692550,1724435442745,-8264.97603201,0.00011,2]
[335692559,1724435442773,-487.95486945,0.00011,2]
[335692563,1724435442784,-795.489987,0.00011,2]
[335692566,1724435442795,-622.9,0.00011,2]
[335692569,1724435442807,-397.91646939,0.00011,2]
[335692596,1724435443080,-5200.0,0.00011,2]
[335692600,1724435443115,-886.89553807,0.00011,2]
[335692602,1724435443126,-4134.07317211,0.00011,2]
[335692605,1724435443137,-1942.04386883,0.00011,2]
[335692607,1724435443148,-2498.71308687,0.00011,2]
[335692609,1724435443163,-475.67259041,0.00011,2]
[335692611,1724435443174,-291.73346888,0.00011,2]
[335692613,1724435443186,-16482.26389187,0.00011,2]
[335692616,1724435443200,-486.24191228,0.00011,2]
[335692664,1724435445918,-1000.0,0.00010999,2]
[335692665,1724435445928,-3723.55798889,0.00011,2]
[335692666,1724435445938,-615.56284133,0.00011,2]
[335692667,1724435445949,-484.07729764,0.00011,2]
[335692668,1724435446002,-44221.04458949,0.00011,2]
[335692669,1724435446013,-711.38074383,0.00011,2]
[335692670,1724435446024,-17349.90711685,0.00011,2]
[335692671,1724435446035,-629.45934199,0.00011,2]
[335692672,1724435446045,-2073.29355406,0.00011,2]
[335692673,1724435446056,-1774.4753,0.00011,2]
[335692674,1724435446067,-6940.04955554,0.00011,2]
[335692675,1724435446119,-723.56163438,0.00011,2]
[335692684,1724435464487,155.17442488,9.985e-05,2]
[335692685,1724435477862,1269.59062795,9.985e-05,2]
[335692686,1724435479738,155.20777064,9.985e-05,2]
[335692687,1724435490873,500.0,0.00027,120]
[335692688,1724435511857,500.00743813,0.00025,60]
[335692697,1724435530299,-177.82,0.00010339,2]
[335692698,1724435530321,-151.43,0.00010376,2]
[335692699,1724435530344,-300.0,0.000105,3]
[335692700,1724435530366,-600.0,0.000106,3]
[335692701,1724435530387,-1000.0,0.000107,3]
[335692702,1724435530407,-2432.47,0.00010793,2]
[335692703,1724435530427,-1300.0,0.000108,3]
[335692704,1724435530446,-300.0,0.00010879,2]
[335692705,1724435530465,-22096.4355,0.0001088,2]
[335692706,1724435530489,-590.5163,0.0001088,2]
[335692707,1724435530511,-1600.0,0.000109,3]
[335692708,1724435530531,-10451.3282,0.000109,2]
[335692709,1724435590457,381.95,8.219e-05,2]
[335692711,1724435605670,1000.0,0.00027,120]
[335692712,1724435606080,1000.0,0.00027,120]
[335692736,1724435642048,500.0,0.00027,120]
[335692741,1724435664639,200.0,0.00027,120]
[335692742,1724435675055,500.0,8.219e-05,2]
[335692743,1724435675322,978.0,8.219e-05,2]
[335692748,1724435703643,291.80613083,8.219e-05,2]
[335692750,1724435707385,155.0,8.219e-05,2]
[335692751,1724435708465,693.0340361,8.219e-05,2]
[335692752,1724435710790,928.59511055,8.219e-05,2]
[335692753,1724435712513,155.33744689,8.219e-05,2]
[335692759,1724435723209,192.37410487,9.962e-05,2]
[335692764,1724435728333,328.0,9.923e-05,2]
[335692767,1724435738256,1273.66432939,9.962e-05,2]
[335692768,1724435739598,250.0,9.923e-05,2]
[335692772,1724435754139,-381.95,0.00010473,2]
[335692773,1724435754164,-495.0,0.00010726,2]
[335692774,1724435754191,-300.0,0.00010727,2]
[335692775,1724435754216,-18919.86744899,0.00010739,2]
[335692776,1724435754242,-150.0,0.00010739,2]
[335692777,1724435754268,-300.0,0.00010739,2]
[335692778,1724435754293,-300.0,0.00010739,2]
[335692779,1724435754320,-1500.0,0.0001074,2]
[335692781,1724435754344,-150.0,0.0001074,2]
[335692782,1724435754368,-1500.0,0.0001074,2]
[335692783,1724435754400,-848.20939797,0.0001078,2]
[335692784,1724435754424,-298.22213014,0.0001079,2]
[335692785,1724435754450,-1500.0,0.00010795,2]
[335692786,1724435754474,-1357.67,0.000108,2]
[335692787,1724435754498,-151.125835,0.00010809,2]
[335692788,1724435754523,-1093.96961008,0.00010824,2]
[335692789,1724435754547,-1500.0,0.0001083,2]
[335692790,1724435754573,-499.99,0.0001083,2]
[335692791,1724435754599,-300.0,0.00010832,2]
[335692792,1724435754622,-1500.0,0.00010834,2]
[335692793,1724435754645,-1500.0,0.00010843,2]
[335692794,1724435754668,-150.0,0.00010858,2]
[335692795,1724435754695,-260.2016,0.00010859,2]
[335692796,1724435754718,-1500.0,0.00010865,2]
[335692797,1724435754743,-1500.0,0.00010898,2]
[335692798,1724435754768,-6582.69391231,0.000109,2]
[335692799,1724435754793,-730.0594,0.000109,2]
[335692800,1724435754818,-157.63939404,0.000109,2]
[335692801,1724435754842,-2107.027,0.000109,2]
[335692802,1724435754865,-13104.6272,0.000109,2]
[335692803,1724435754890,-284.88049635,0.000109,2]
[335692804,1724435754913,-696.80529528,0.000109,2]
[335692805,1724435754942,-268.0911,0.000109,2]
[335692806,1724435754967,-1026.30342348,0.000109,2]
[335692807,1724435754994,-1500.0,0.00010906,2]
[335692808,1724435755020,-500.0,0.00010912,2]
[335692809,1724435755047,-150.0,0.00010939,2]
[335692810,1724435755072,-575.83046247,0.00010956,2]
[335692811,1724435755097,-200.0,0.00010959,2]
[335692812,1724435755122,-1500.0,0.0001096,2]
[335692813,1724435755146,-150.0,0.0001096,2]
[335692814,1724435755170,-150.0,0.00010963,2]
[335692815,1724435755199,-1500.0,0.00010966,2]
[335692822,1724435789429,536.80823849,0.00010949,2]
[335692824,1724435790764,2013.1752289,0.000109,2]
[335692845,1724435804395,264.85331029,9.923e-05,2]
[335692846,1724435805521,157.63939403,0.000109,2]
[335692847,1724435813813,500.0,0.00010966,2]
[335692849,1724435816852,464.53686352,0.000109,2]
[335692855,1724435828421,154.72,0.00010959,2]
[335692857,1724435832249,312.73284554,0.000109,2]
[335692865,1724435850111,250.0,0.00010959,2]
[335692866,1724435850576,655.74742,0.0001089,2]
[335692867,1724435852596,350.52,0.00010495,2]
[335692871,1724435864304,2321.23314352,0.00010966,2]
[335692872,1724435872991,2000.0,0.00010959,2]
[335692873,1724435877127,500.0,0.00010424,2]
[335692876,1724435885516,150.0,0.00010959,2]
[335692877,1724435897949,15334.2502,0.000109,2]
[335692878,1724435901074,10538.92504884,0.00010949,2]
[335692880,1724435903384,1303.071494,0.00010923,2]
[335692881,1724435908938,15559.94712469,0.000109,2]
[335692882,1724435912829,500.0,0.000109,2]
[335692883,1724435914909,3875.99346564,0.00010949,2]
[335692884,1724435922620,500.0,8.275e-05,2]
[335692885,1724435925868,1342.11681926,0.000109,2]
[335692886,1724435926406,500.0,8.275e-05,2]
[335692887,1724435927770,889.69296972,0.000109,2]
[335692890,1724435935447,183.9,0.00010364,2]
[335692891,1724435941403,283.4363462,0.000109,2]
[335692892,1724435942827,760.92143895,0.000109,2]
[335692893,1724435945744,418.80543007,0.00010949,2]
[335692894,1724435947130,309.69124234,0.000109,2]
[335692895,1724435948617,10261.1651,0.00010893,2]
[335692896,1724435950758,157.63939403,0.000109,2]
[335692897,1724435952917,15184.4543,0.00010873,2]
[335692898,1724435954312,19905.83476384,0.000109,2]
[335692899,1724435954592,300.0,0.000109,2]
[335692901,1724435965909,249.27043428,0.000109,2]
[335692902,1724435966965,1650.0,0.00010484,2]
[335692903,1724435968694,288.58645643,0.00010949,2]
[335692904,1724435972124,619.94,9.958e-05,2]
[335692905,1724435980557,500.0,0.00025,60]
[335692907,1724435985296,500.0,0.000109,2]
[335692908,1724435985882,500.0,0.000109,2]
[335692909,1724435986294,500.0,0.000109,2]
[335692910,1724435986658,500.0,0.000109,2]
[335692911,1724435986984,694.0,0.000109,2]
[335692912,1724435990230,171.94,0.00010566,2]
[335692913,1724435990597,1236.61,0.00010566,2]
[335692915,1724435991848,150.0,0.00027,120]
[335692917,1724436000538,175.26,8.379e-05,2]
[335692918,1724436000988,175.26,0.00010474,2]
[335692919,1724436002739,151.08468512,0.00010873,2]
[335692924,1724436016826,500.0,0.00010873,2]
[335692926,1724436027664,3393.94,0.00010474,2]
[335692927,1724436029845,760.92143895,0.00010873,2]
[335692929,1724436033205,514.63,0.00010383,2]
[335692934,1724436044308,35741.98754431,0.00010949,2]
[335692936,1724436046834,500.0,0.00010873,2]
[335692937,1724436047962,159.29,0.00010296,2]
[335692941,1724436050098,312.73284553,0.000109,2]
[335692942,1724436055292,5583.0098,0.000109,2]
[335692945,1724436059106,1075.78622899,0.00010949,2]
[335692946,1724436061298,894.74454618,0.000109,2]
[335692949,1724436065876,155.0,0.00010949,2]
[335692956,1724436077390,206.46082824,0.000109,2]
[335692959,1724436080828,23900.0,0.00010296,2]
[335692983,1724436129051,434.0014705,0.000109,2]
[335692988,1724436139459,18390.2569,0.000109,2]
[335692991,1724436153116,155.0,0.00010949,2]
[335692993,1724436159350,2505.08172549,0.00010949,2]
[335692994,1724436159771,2842.93384209,0.00010949,2]
[335692996,1724436162517,3016.2951,0.00010888,2]
[335692998,1724436165819,500.0,0.00010296,2]
[335692999,1724436166873,612.91,8.438e-05,2]
[335693000,1724436167279,612.91,0.00010702,2]
[335693004,1724436178689,431.6752575,0.00010949,2]
[335693020,1724436196270,596.49636412,0.000109,2]
[335693024,1724436198960,152.9474,0.0001089,2]
[335693027,1724436204306,1000.0,0.00026849,120]
[335693028,1724436204715,1000.0,0.00026849,120]
[335693031,1724436212436,150.0,0.000108,2]
[335693042,1724436232493,200.33,0.00010366,2]
[335693051,1724436244796,500.0,0.00010912,2]
[335693053,1724436245631,500.0,0.00024932,120]
[335693056,1724436253168,312.73284553,0.000109,2]
[335693061,1724436266352,737.6,0.00010456,2]
[335693062,1724436268629,200.0,0.00010959,2]
[335693063,1724436268828,500.0,0.000108,2]
[335693071,1724436279083,230.80232664,0.000109,2]
[335693072,1724436285409,250.0,0.000104,2]
[335693074,1724436288205,648.4522,0.000109,2]
[335693085,1724436308477,218.11163003,0.000109,2]
[335693087,1724436329545,5289.93,0.00010433,2]
[335693089,1724436331478,397.66424274,0.000109,2]
[335693090,1724436332077,158.02,0.00010959,2]
[335693091,1724436336213,14029.47842144,0.000109,2]
[335693093,1724436347622,868.87,0.00010321,2]
[335693095,1724436363845,500.0,0.000109,2]
[335693096,1724436365932,15514.75753766,0.00010949,2]
[335693097,1724436371914,-676.6,0.00011,5]
[335693098,1724436376835,172.00474581,0.000109,2]
[335693103,1724436392311,-2350.0,0.00010994,3]
[335693104,1724436392332,-1089.55055981,0.00010999,3]
[335693105,1724436392354,-1000.0,0.00011,3]
[335693106,1724436392373,-1000.0,0.00011,4]
[335693107,1724436395863,152.79080492,0.000109,2]
[335693117,1724436433992,150.0,9.888e-05,2]
[335693118,1724436434382,150.0,0.00010162,2]
[335693119,1724436434700,150.0,0.00010437,2]
[335693120,1724436435006,150.0,0.00010712,2]
[335693121,1724436440368,600.74422133,0.00010949,2]
[335693122,1724436441303,463.79007111,0.00010949,2]
[335693123,1724436448549,312.73284553,0.000109,2]
[335693124,1724436450344,478.21553409,0.00010949,2]
[335693125,1724436459321,510.89036362,0.00010949,2]
[335693126,1724436466766,265.10949516,0.000109,2]
[335693127,1724436475953,255.46278276,0.00010949,2]
[335693128,1724436481846,341.70970575,0.00010949,2]
[335693129,1724436494475,203.41395605,0.00010949,2]
[335693137,1724436501260,380.32741541,0.00010949,2]
[335693139,1724436501580,175.26,8.295e-05,2]
[335693140,1724436511440,502.7028,0.000109,2]
[335693141,1724436517482,155.16643418,0.00010949,2]
[335693151,1724436526496,254.9294009,0.00010054,2]
[335693152,1724436529103,164.40260801,0.00010949,2]
[335693153,1724436529333,418.59085168,0.00010949,2]
[335693154,1724436536431,19088.83928795,0.00010054,2]
[335693155,1724436536778,432.47832469,0.00010949,2]
[335693157,1724436538060,357.45302385,0.00010949,2]
[335693158,1724436541954,309.58879588,0.00010949,2]
[335693159,1724436547000,156.39812584,0.00010949,2]
[335693160,1724436547097,546.45619,0.0001089,2]
[335693163,1724436556955,309.58879588,0.00010949,2]
[335693164,1724436561650,197.1386879,0.00010949,2]
[335693165,1724436564085,328.2488375,0.00010949,2]
[335693166,1724436573605,5405.29278811,0.00010949,2]
[335693170,1724436582817,9537.68688299,0.00010949,2]
[335693171,1724436582843,26204.30066132,0.00010949,2]
[335693172,1724436588883,155.0,0.00010949,2]
[335693173,1724436593864,236.34424982,0.00010949,2]
[335693176,1724436601983,176.73966344,0.000109,2]
[335693177,1724436616139,190.84767625,0.000109,2]
[335693203,1724436631866,-150.0,0.00010978,2]
[335693204,1724436631878,-151.06,0.00010978,2]
[335693205,1724436631887,-533.1243,0.00010979,2]
[335693206,1724436631899,-724.50427871,0.00010979,2]
[335693207,1724436631908,-155.0,0.00010979,2]
[335693208,1724436631918,-1192.55775368,0.00010979,2]
[335693209,1724436631927,-290.86586941,0.00010986,2]
[335693210,1724436631936,-528.91996067,0.00010989,2]
[335693211,1724436631946,-175.5090904,0.0001099,2]
[335693212,1724436631955,-175.5090904,0.0001099,2]
[335693213,1724436631965,-175.5090904,0.0001099,2]
[335693214,1724436631974,-1000.0,0.00010991,2]
[335693215,1724436631983,-2505.08172549,0.00010993,2]
[335693216,1724436631993,-305.0,0.00010993,2]
[335693217,1724436632002,-303.90469939,0.00010993,2]
[335693218,1724436632012,-1312.97,0.00010996,2]
[335693219,1724436632022,-2792.31920982,0.00010997,2]
[335693220,1724436632031,-224.50356665,0.00010998,2]
[335693221,1724436632041,-500.0,0.00010998,2]
[335693222,1724436632054,-500.0,0.00010998,2]
[335693223,1724436632064,-500.0,0.00010998,2]
[335693224,1724436632073,-376.57995716,0.00010998,2]
[335693225,1724436632082,-1000.0,0.00010999,2]
[335693226,1724436632091,-1000.0,0.00010999,2]
[335693227,1724436632101,-1000.0,0.00010999,2]
[335693228,1724436632110,-1000.0,0.00010999,2]
[335693229,1724436632119,-7075.62,0.00010999,2]
[335693230,1724436632131,-500.0,0.00010999,2]
[335693231,1724436632140,-500.0,0.00010999,2]
[335693232,1724436632149,-500.0,0.00010999,2]
[335693233,1724436632159,-500.0,0.00010999,2]
[335693234,1724436632168,-500.0,0.00010999,2]
[335693235,1724436632177,-197.6,0.00010999,2]
[335693236,1724436632190,-215.89143335,0.00010999,2]
[335693237,1724436632199,-500.0,0.00010999,2]
[335693238,1724436632209,-402.02,0.00010999,2]
[335693239,1724436632218,-500.0,0.00010999,2]
[335693240,1724436632227,-500.0,0.00010999,2]
[335693241,1724436632236,-500.0,0.00010999,2]
[335693242,1724436632245,-500.0,0.00010999,2]
[335693243,1724436632253,-330.4922593,0.00010999,2]
[335693244,1724436632262,-500.0,0.00010999,2]
[335693245,1724436632271,-391.95,0.00010999,2]
[335693246,1724436632280,-165.58786696,0.00010999,2]
[335693247,1724436632289,-155.0,0.00010999,2]
[335693248,1724436632298,-500.0,0.00010999,2]
[335693249,1724436632307,-500.0,0.00010999,2]
[335693250,1724436632316,-247.53,0.00010999,2]
[335693251,1724436632325,-500.0,0.00010999,2]
[335693252,1724436632334,-383.6206245,0.00010999,2]
[335693253,1724436632343,-501.49882417,0.00010999,2]
[335693254,1724436632353,-28224.455231,0.00011,2]
[335693255,1724436632364,-971.80840618,0.00011,2]
[335693256,1724436632378,-1217.91479586,0.00011,2]
[335693257,1724436632389,-840.53030545,0.00011,2]
[335693258,1724436632598,-1604.23397071,0.00011,2]
[335693259,1724436632609,-364.74443334,0.00011,2]
[335693260,1724436632624,-3396.24173161,0.00011,2]
[335693261,1724436632635,-465.0,0.00011,2]
[335693262,1724436632646,-499.60047608,0.00011,2]
[335693263,1724436632658,-496.4005511,0.00011,2]
[335693264,1724436632671,-1740.0,0.00011,2]
[335693265,1724436632682,-943.65948572,0.00011,2]
[335693266,1724436632703,-2691.68471445,0.00011,2]
[335693267,1724436632714,-5363.20000002,0.00011,2]
[335693268,1724436633227,-1.82706426,0.00011,2]
[335693269,1724436633240,-18180.43742699,0.00011,2]
[335693270,1724436633862,312.73284553,0.000109,2]
[335693295,1724436637952,-5873.22356511,0.00011,2]
[335693296,1724436637963,-33178.24601007,0.00011,2]
[335693297,1724436637974,-54094.9610621,0.00011,2]
[335693298,1724436638056,-652.16989619,0.00011,2]
[335693299,1724436638164,-771.07115909,0.00011,2]
[335693300,1724436638176,-317982.65121355,0.00011,2]
[335693301,1724436638188,-296.48546432,0.00011,2]
[335693302,1724436638198,-593.26334,0.00011,2]
[335693303,1724436638210,-270.9400001,0.00011,2]
[335693304,1724436638264,-1202.39730484,0.00011,2]
[335693438,1724436640044,-18842.98545663,0.00011,2]
[335693440,1724436640054,-2000.0,0.00011,2]
[335693442,1724436640064,-2000.0,0.00011,2]
[335693444,1724436640074,-2000.0,0.00011,2]
[335693446,1724436640083,-1052.18746683,0.00011,2]
[335693448,1724436640092,-14644.98759129,0.00011,2]
[335693450,1724436640103,-522.77982189,0.00011,2]
[335693452,1724436640115,-6761.92528865,0.00011,2]
[335693454,1724436640127,-387.54003315,0.00011,2]
[335693456,1724436640148,-3551.38360918,0.00011,2]
[335693459,1724436640159,-2778.37187532,0.00011,2]
[335693502,1724436640585,-379.92281536,0.00011,2]
[335693504,1724436640600,-2016.437266,0.00011,2]
[335693507,1724436640611,-344.62556429,0.00011,2]
[335693509,1724436640622,-1568.99288385,0.00011,2]
[335693511,1724436640635,-301.15015028,0.00011,2]
[335693513,1724436640646,-315.27,0.00011,2]
[335693518,1724436640663,-1931.68728118,0.00011,2]
[335693521,1724436640675,-3796.89804238,0.00011,2]
[335693524,1724436640686,-1760.37071045,0.00011,2]
[335693526,1724436640697,-1043.21965598,0.00011,2]
[335693528,1724436640708,-1609.608,0.00011,2]
[335693664,1724436643007,-757.85573963,0.00011,2]
[335693666,1724436643018,-631.38,0.00011,2]
[335693684,1724436643175,-557.09503538,0.00011,2]
[335693898,1724436645373,1050.0,0.0001,2]
[335693961,1724436645902,-184.0,0.00010999,2]
[335693963,1724436645911,-34673.86405609,0.00011,2]
[335693966,1724436645922,-527.09658587,0.00011,2]
[335693967,1724436645934,-686.00000001,0.00011,2]
[335693968,1724436646122,-328.21884204,0.00011,2]
[335693970,1724436646136,-2040.06066112,0.00011,2]
[335693972,1724436646147,-2585.58452161,0.00011,2]
[335693974,1724436646158,-3364.54143253,0.00011,2]
[335693988,1724436646278,-299.94753484,0.00011,2]
[335693990,1724436646290,-303.6339816,0.00011,2]
[335693992,1724436646301,-18941.82842664,0.00011,2]
[335693994,1724436646312,-30791.21823665,0.00011,2]
[335693996,1724436646323,-49426.340815,0.00011,2]
[335693998,1724436646334,-34766.85113782,0.00011,2]
[335694001,1724436646345,-18059.96676487,0.00011,2]
[335694003,1724436646356,-103911.09650723,0.00011,2]
[335694005,1724436646371,-340273.39600511,0.00011,2]
[335694008,1724436646382,-45993.97661535,0.00011,2]
[335694010,1724436646405,-18172.18535401,0.00011,2]
[335694012,1724436646416,-11855.5386844,0.00011,2]
[335694014,1724436646426,-32250.84540693,0.00011,2]
[335694016,1724436646437,-4165.73917862,0.00011,2]
[335694020,1724436646462,-142010.8357019,0.00011,2]
[335694022,1724436646471,-1311.26953304,0.00011,2]
[335694024,1724436646480,-1000.0,0.00011,2]
[335694026,1724436646489,-2000.0,0.00011,2]
[335694027,1724436646499,-2000.0,0.00011,2]
[335694030,1724436646508,-10091.0,0.00011,2]
[335694032,1724436646517,-1000.0,0.00011,2]
[335694033,1724436646526,-1000.0,0.00011,2]
[335694035,1724436646536,-1000.0,0.00011,2]
[335694037,1724436646545,-1000.0,0.00011,2]
[335694039,1724436646554,-1000.0,0.00011,2]
[335694041,1724436646563,-1000.0,0.00011,2]
[335694043,1724436646572,-1000.0,0.00011,2]
[335694045,1724436646583,-1000.0,0.00011,2]
[335694047,1724436646596,-1000.0,0.00011,2]
[335694049,1724436646605,-1000.0,0.00011,2]
[335694051,1724436646614,-1000.0,0.00011,2]
[335694053,1724436646625,-1000.0,0.00011,2]
[335694055,1724436646637,-1000.0,0.00011,2]
[335694057,1724436646646,-1000.0,0.00011,2]
[335694059,1724436646655,-767.17889144,0.00011,2]
[335694061,1724436646666,-2376.0,0.00011,2]
[335694063,1724436646675,-250.0,0.00011,2]
[335694065,1724436646685,-2000.0,0.00011,2]
[335694067,1724436646694,-209.0,0.00011,2]
[335694069,1724436646703,-209.0,0.00011,2]
[335694071,1724436646712,-209.0,0.00011,2]
[335694073,1724436646721,-209.0,0.00011,2]
[335694075,1724436646730,-7920.0,0.00011,2]
[335694077,1724436646739,-201.0,0.00011,2]
[335694079,1724436646749,-201.0,0.00011,2]
[335694081,1724436646758,-201.0,0.00011,2]
[335694083,1724436646769,-208.0,0.00011,2]
[335694085,1724436646778,-208.0,0.00011,2]
[335694087,1724436646788,-208.0,0.00011,2]
[335694089,1724436646797,-208.0,0.00011,2]
[335694091,1724436646806,-208.0,0.00011,2]
[335694093,1724436646816,-208.0,0.00011,2]
[335694095,1724436646826,-208.0,0.00011,2]
[335694097,1724436646835,-500.0,0.00011,2]
[335694099,1724436646844,-600.0,0.00011,2]
[335694101,1724436646853,-979.0,0.00011,2]
[335694103,1724436646863,-441662.36776522,0.00011,2]
[335694105,1724436646875,-599.38775637,0.00011,2]
[335694110,1724436646919,-12629.59651265,0.00011,2]
[335694112,1724436646930,-6431.76647943,0.00011,2]
[335694115,1724436646942,-5082.81328768,0.00011,2]
[335694117,1724436646952,-3188.87826066,0.00011,2]